[Event "*** Titled Tuesday Blitz"]
[Site "Chess.com"]
[Date "2019.11.05"]
[Round "2"]
[White "NemtsevIgor"]
[Black "RiskyDecision"]
[Result "0-1"]
[WhiteElo "2274"]
[BlackElo "2514"]
[TimeControl "180+2"]
[EndTime "13:24:06 PST"]
[Termination "RiskyDecision won by resignation"]

1. d4 {[%clk 0:03:01.9]} 1... f5 {[%clk 0:02:59.9]} 2. Nc3 {[%clk 0:03:01.8]}
2... Nf6 {[%clk 0:02:59.9]} 3. Bg5 {[%clk 0:03:02.7]} 3... d5 {[%clk 0:03:00.5]}
4. Bxf6 {[%clk 0:03:00.9]} 4... exf6 {[%clk 0:03:01.6]} 5. e3 {[%clk 0:03:01.2]}
5... Be6 {[%clk 0:03:01.8]} 6. Nce2 {[%clk 0:03:01.5]} 6... Nc6 {[%clk
0:02:59.5]} 7. h4 {[%clk 0:03:01.8]} 7... h5 {[%clk 0:02:57.6]} 8. Nh3 {[%clk
0:03:02.1]} 8... Qd7 {[%clk 0:02:56.3]} 9. Nhf4 {[%clk 0:03:02.5]} 9... Bf7
{[%clk 0:02:57.3]} 10. g3 {[%clk 0:03:01.5]} 10... O-O-O {[%clk 0:02:50.8]} 11.
Bg2 {[%clk 0:02:57.1]} 11... Kb8 {[%clk 0:02:49.9]} 12. a3 {[%clk 0:02:43.4]}
12... Ne7 {[%clk 0:02:43.4]} 13. b3 {[%clk 0:02:37.5]} 13... Nc8 {[%clk
0:02:42.1]} 14. Nd3 {[%clk 0:02:25.5]} 14... Nd6 {[%clk 0:02:37.8]} 15. Nc5
{[%clk 0:02:11.4]} 15... Qe8 {[%clk 0:02:36.3]} 16. a4 {[%clk 0:02:04]} 16...
Ne4 {[%clk 0:02:37.4]} 17. Nxe4 {[%clk 0:02:00.2]} 17... fxe4 {[%clk 0:02:38]}
18. Kf1 {[%clk 0:01:47.5]} 18... g5 {[%clk 0:02:37.2]} 19. Kg1 {[%clk
0:01:47.4]} 19... gxh4 {[%clk 0:02:34.3]} 20. Rxh4 {[%clk 0:01:48]} 20... Bh6
{[%clk 0:02:35.4]} 21. Nf4 {[%clk 0:01:48.3]} 21... Bg5 {[%clk 0:02:35.7]} 22.
Rh2 {[%clk 0:01:48.8]} 22... h4 {[%clk 0:02:36]} 23. c4 {[%clk 0:01:32.7]} 23...
hxg3 {[%clk 0:02:29]} 24. fxg3 {[%clk 0:01:33]} 24... Rxh2 {[%clk 0:02:27.6]}
25. Kxh2 {[%clk 0:01:34.3]} 25... dxc4 {[%clk 0:02:17.7]} 26. bxc4 {[%clk
0:01:34.6]} 26... Bxc4 {[%clk 0:02:18.8]} 27. Qc2 {[%clk 0:01:30.2]} 27... Bxf4
{[%clk 0:02:08.4]} 28. exf4 {[%clk 0:01:24.5]} 28... Rxd4 {[%clk 0:02:02]} 29.
Rc1 {[%clk 0:01:14.3]} 29... c6 {[%clk 0:01:47]} 30. Qb2 {[%clk 0:01:12.7]}
30... Qd7 {[%clk 0:01:43.5]} 31. Qb4 {[%clk 0:01:09]} 31... Bd3 {[%clk
0:01:19.9]} 32. Qf8+ {[%clk 0:01:07.4]} 32... Qd8 {[%clk 0:01:20.9]} 33. Qg7
{[%clk 0:01:04.7]} 33... Ka8 {[%clk 0:01:16.5]} 34. Rc5 {[%clk 0:00:54.5]} 34...
Rd7 {[%clk 0:01:16.1]} 35. Qg4 {[%clk 0:00:52.5]} 35... Rh7+ {[%clk 0:01:15]}
36. Bh3 {[%clk 0:00:46.5]} 36... Bf1 {[%clk 0:01:11.3]} 37. Rh5 {[%clk
0:00:44.9]} 37... Rxh5 {[%clk 0:01:03.8]} 38. Qxh5 {[%clk 0:00:46]} 38... Bxh3
{[%clk 0:01:00.4]} 39. Kxh3 {[%clk 0:00:47.2]} 39... e3 {[%clk 0:00:55.5]} 40.
f5 {[%clk 0:00:40.3]} 40... a5 {[%clk 0:00:49.1]} 41. Qg4 {[%clk 0:00:36.9]}
41... Qe7 {[%clk 0:00:46.6]} 42. Qe2 {[%clk 0:00:34.8]} 42... Qe4 {[%clk
0:00:44.1]} 43. g4 {[%clk 0:00:33.7]} 43... Qf4 {[%clk 0:00:44]} 44. Qe1 {[%clk
0:00:27.9]} 44... Qf3+ {[%clk 0:00:42.1]} 45. Kh4 {[%clk 0:00:28.5]} 45... Qf2+
{[%clk 0:00:42.4]} 46. Qxf2 {[%clk 0:00:29.5]} 46... exf2 {[%clk 0:00:43.7]} 0-1

[Event "*** Titled Tuesday Blitz"]
[Site "Chess.com"]
[Date "2019.11.05"]
[Round "2"]
[White "MikeSailer"]
[Black "NZT72"]
[Result "0-1"]
[WhiteElo "2204"]
[BlackElo "2484"]
[TimeControl "180+2"]
[EndTime "13:24:07 PST"]
[Termination "NZT72 won by resignation"]

1. b4 {[%clk 0:03:01.9]} 1... e5 {[%clk 0:02:59.8]} 2. Bb2 {[%clk 0:03:02.7]}
2... Bxb4 {[%clk 0:03:00.3]} 3. Bxe5 {[%clk 0:03:04]} 3... Nf6 {[%clk
0:03:01.4]} 4. Nf3 {[%clk 0:03:05.3]} 4... O-O {[%clk 0:03:00.2]} 5. e3 {[%clk
0:03:06.9]} 5... d5 {[%clk 0:03:00.9]} 6. Be2 {[%clk 0:03:08.1]} 6... Nbd7
{[%clk 0:03:00.8]} 7. Bb2 {[%clk 0:03:08.8]} 7... Nb6 {[%clk 0:03:01]} 8. a4
{[%clk 0:03:03.6]} 8... a5 {[%clk 0:03:01.2]} 9. O-O {[%clk 0:03:04.2]} 9... Bd7
{[%clk 0:02:59.7]} 10. c3 {[%clk 0:03:00.6]} 10... Bd6 {[%clk 0:02:49.3]} 11.
Bb5 {[%clk 0:03:01.1]} 11... Bxb5 {[%clk 0:02:38.5]} 12. axb5 {[%clk 0:03:02.4]}
12... Qd7 {[%clk 0:02:26.2]} 13. Na3 {[%clk 0:02:51.8]} 13... Rfe8 {[%clk
0:02:02.6]} 14. Qe2 {[%clk 0:02:49.4]} 14... Ne4 {[%clk 0:01:39.3]} 15. Nd4
{[%clk 0:02:50.1]} 15... Nc5 {[%clk 0:01:05.9]} 16. f4 {[%clk 0:02:37.3]} 16...
Ne6 {[%clk 0:01:03]} 17. Nf5 {[%clk 0:02:27]} 17... Bf8 {[%clk 0:01:03.5]} 18.
Qg4 {[%clk 0:01:59.7]} 18... g6 {[%clk 0:00:57]} 19. Ng3 {[%clk 0:01:53.2]}
19... Nc5 {[%clk 0:00:48.6]} 20. Qxd7 {[%clk 0:01:52.4]} 20... Nbxd7 {[%clk
0:00:45.5]} 21. Nc2 {[%clk 0:01:45.5]} 21... Nb3 {[%clk 0:00:40.7]} 22. Rad1
{[%clk 0:01:42.9]} 22... Ndc5 {[%clk 0:00:32.7]} 23. d4 {[%clk 0:01:38.8]} 23...
Na4 {[%clk 0:00:31.5]} 24. Ba3 {[%clk 0:01:29.9]} 24... Bxa3 {[%clk 0:00:31.5]}
25. Nxa3 {[%clk 0:01:31]} 25... Rxe3 {[%clk 0:00:32.1]} 26. c4 {[%clk
0:01:25.3]} 26... Nc3 {[%clk 0:00:28.4]} 27. Rde1 {[%clk 0:01:26.1]} 27... Rae8
{[%clk 0:00:28]} 28. Rxe3 {[%clk 0:01:24.7]} 28... Rxe3 {[%clk 0:00:29.9]} 29.
cxd5 {[%clk 0:01:22.9]} 29... Nxd5 {[%clk 0:00:25.4]} 30. Nc4 {[%clk 0:01:23.5]}
30... Rc3 {[%clk 0:00:24.6]} 31. Ne5 {[%clk 0:01:21.4]} 31... f6 {[%clk
0:00:23.8]} 32. Nd7 {[%clk 0:01:17.1]} 32... Kf7 {[%clk 0:00:16.6]} 33. f5
{[%clk 0:01:04.4]} 33... Rc1 {[%clk 0:00:16.8]} 34. fxg6+ {[%clk 0:00:59.2]}
34... hxg6 {[%clk 0:00:17.8]} 35. Rxc1 {[%clk 0:00:58.5]} 35... Nxc1 {[%clk
0:00:19]} 36. Kf2 {[%clk 0:00:51.9]} 36... a4 {[%clk 0:00:19.9]} 37. Nc5 {[%clk
0:00:51.7]} 37... a3 {[%clk 0:00:20]} 38. Ne2 {[%clk 0:00:45]} 38... a2 {[%clk
0:00:17.1]} 39. Nxc1 {[%clk 0:00:45.6]} 39... a1=Q {[%clk 0:00:18.5]} 40. Ne2
{[%clk 0:00:46.8]} 40... Qb2 {[%clk 0:00:18.6]} 41. Ne4 {[%clk 0:00:46.5]} 41...
Nf4 {[%clk 0:00:17.5]} 42. Nc3 {[%clk 0:00:46.8]} 42... Nxe2 {[%clk 0:00:17.8]}
43. Nxe2 {[%clk 0:00:48.4]} 43... Qxb5 {[%clk 0:00:18.9]} 0-1

[Event "*** Titled Tuesday Blitz"]
[Site "Chess.com"]
[Date "2019.11.05"]
[Round "2"]
[White "Manukyan_Artak"]
[Black "snowlord"]
[Result "0-1"]
[WhiteElo "2379"]
[BlackElo "2733"]
[TimeControl "180+2"]
[EndTime "13:24:08 PST"]
[Termination "snowlord won by resignation"]

1. e4 {[%clk 0:03:01.9]} 1... c5 {[%clk 0:03:00.3]} 2. Nf3 {[%clk 0:03:00.5]}
2... d6 {[%clk 0:03:01.2]} 3. Bb5+ {[%clk 0:03:00.7]} 3... Nc6 {[%clk
0:02:59.8]} 4. O-O {[%clk 0:03:01.2]} 4... Bd7 {[%clk 0:02:59.8]} 5. Re1 {[%clk
0:03:02]} 5... Nf6 {[%clk 0:02:59.6]} 6. c3 {[%clk 0:03:03]} 6... a6 {[%clk
0:03:00.9]} 7. Bxc6 {[%clk 0:03:02.4]} 7... Bxc6 {[%clk 0:03:01.8]} 8. d4 {[%clk
0:03:04.3]} 8... cxd4 {[%clk 0:02:56.6]} 9. cxd4 {[%clk 0:03:04.7]} 9... Bxe4
{[%clk 0:02:55.8]} 10. Bg5 {[%clk 0:02:55.7]} 10... d5 {[%clk 0:02:52.3]} 11.
Bxf6 {[%clk 0:02:50]} 11... exf6 {[%clk 0:02:36.8]} 12. Nc3 {[%clk 0:02:48]}
12... Be7 {[%clk 0:02:36.5]} 13. Nxe4 {[%clk 0:02:42.7]} 13... dxe4 {[%clk
0:02:38.4]} 14. Rxe4 {[%clk 0:02:43.9]} 14... O-O {[%clk 0:02:40]} 15. d5 {[%clk
0:02:39.1]} 15... Bd6 {[%clk 0:02:40.4]} 16. Qd2 {[%clk 0:02:34.6]} 16... f5
{[%clk 0:02:36.8]} 17. Re2 {[%clk 0:02:22.2]} 17... Rc8 {[%clk 0:02:33.1]} 18.
Rd1 {[%clk 0:02:12.8]} 18... Qf6 {[%clk 0:02:16.3]} 19. Qg5 {[%clk 0:01:51.8]}
19... Qxg5 {[%clk 0:01:57.7]} 20. Nxg5 {[%clk 0:01:53.7]} 20... Rfe8 {[%clk
0:01:58.1]} 21. Rxe8+ {[%clk 0:01:46.2]} 21... Rxe8 {[%clk 0:02:00]} 22. Kf1
{[%clk 0:01:47.5]} 22... Rc8 {[%clk 0:01:41.3]} 23. Nf3 {[%clk 0:01:45.9]} 23...
g6 {[%clk 0:01:30.2]} 24. Ke2 {[%clk 0:01:40.7]} 24... Kg7 {[%clk 0:01:28.4]}
25. Kd3 {[%clk 0:01:28]} 25... Rc5 {[%clk 0:01:26.1]} 26. Kd4 {[%clk 0:01:19.5]}
26... b5 {[%clk 0:01:07.7]} 27. a3 {[%clk 0:01:19.8]} 27... Kf6 {[%clk
0:01:02.3]} 28. h4 {[%clk 0:01:18.1]} 28... Rc2 {[%clk 0:00:59.1]} 29. Rd2
{[%clk 0:01:17.8]} 29... Bc5+ {[%clk 0:01:00]} 30. Kd3 {[%clk 0:01:17.3]} 30...
Rxd2+ {[%clk 0:01:01.2]} 31. Nxd2 {[%clk 0:01:18.5]} 31... Bxf2 {[%clk
0:01:02.3]} 32. Nf3 {[%clk 0:01:19.1]} 32... h5 {[%clk 0:00:55.5]} 33. b3 {[%clk
0:01:14.3]} 33... Ke7 {[%clk 0:00:52.3]} 34. a4 {[%clk 0:01:03.8]} 34... Kd6
{[%clk 0:00:52.1]} 35. axb5 {[%clk 0:01:05]} 35... axb5 {[%clk 0:00:53]} 36. Nd4
{[%clk 0:00:50.3]} 36... Bxd4 {[%clk 0:00:41.9]} 37. Kxd4 {[%clk 0:00:51.6]}
37... f6 {[%clk 0:00:43.3]} 38. g3 {[%clk 0:00:45]} 38... g5 {[%clk 0:00:43.6]}
39. b4 {[%clk 0:00:40]} 39... f4 {[%clk 0:00:22.9]} 40. hxg5 {[%clk 0:00:35.9]}
40... fxg3 {[%clk 0:00:18.7]} 41. gxf6 {[%clk 0:00:33.2]} 41... g2 {[%clk
0:00:19.3]} 42. f7 {[%clk 0:00:34.6]} 42... g1=Q+ {[%clk 0:00:20.3]} 43. Ke4
{[%clk 0:00:36.5]} 43... Qg6+ {[%clk 0:00:21]} 0-1

[Event "*** Titled Tuesday Blitz"]
[Site "Chess.com"]
[Date "2019.11.05"]
[Round "2"]
[White "shnitez"]
[Black "LuisFSiles"]
[Result "0-1"]
[WhiteElo "2509"]
[BlackElo "2313"]
[TimeControl "180+2"]
[EndTime "13:24:10 PST"]
[Termination "LuisFSiles won by resignation"]

1. d4 {[%clk 0:03:01.9]} 1... Nf6 {[%clk 0:02:58]} 2. Bf4 {[%clk 0:03:02.1]}
2... g6 {[%clk 0:02:52.1]} 3. Nc3 {[%clk 0:03:02.7]} 3... d5 {[%clk 0:02:52.2]}
4. e3 {[%clk 0:03:03.1]} 4... Bg7 {[%clk 0:02:52.9]} 5. h4 {[%clk 0:03:04.4]}
5... h5 {[%clk 0:02:46.1]} 6. Nf3 {[%clk 0:03:03.3]} 6... Bf5 {[%clk 0:02:42.9]}
7. Ne5 {[%clk 0:03:03.5]} 7... c6 {[%clk 0:02:31.5]} 8. f3 {[%clk 0:03:00.8]}
8... Nfd7 {[%clk 0:02:25.2]} 9. Nd3 {[%clk 0:02:33.1]} 9... Bxd3 {[%clk
0:02:21.9]} 10. Bxd3 {[%clk 0:02:25]} 10... e5 {[%clk 0:02:22.8]} 11. dxe5
{[%clk 0:02:26]} 11... Nxe5 {[%clk 0:02:23.3]} 12. Qd2 {[%clk 0:02:15.1]} 12...
Nbd7 {[%clk 0:02:13]} 13. O-O-O {[%clk 0:02:14.4]} 13... Qa5 {[%clk 0:02:09.1]}
14. Kb1 {[%clk 0:01:49.5]} 14... Nb6 {[%clk 0:01:44.4]} 15. Bxe5 {[%clk
0:00:45.5]} 15... Bxe5 {[%clk 0:01:44]} 16. Ne2 {[%clk 0:00:43.5]} 16... Qxd2
{[%clk 0:01:34.3]} 17. Rxd2 {[%clk 0:00:45.4]} 17... O-O-O {[%clk 0:01:33.9]}
18. c3 {[%clk 0:00:39]} 18... Rhe8 {[%clk 0:01:34.2]} 19. Kc2 {[%clk 0:00:35]}
19... Bg7 {[%clk 0:01:20.2]} 20. e4 {[%clk 0:00:34]} 20... dxe4 {[%clk
0:01:20.2]} 21. fxe4 {[%clk 0:00:20.2]} 21... Bh6 {[%clk 0:01:19.7]} 22. Rdd1
{[%clk 0:00:21.3]} 22... Nd7 {[%clk 0:01:08.8]} 23. Nd4 {[%clk 0:00:17.3]} 23...
Ne5 {[%clk 0:01:07.8]} 24. Nf3 {[%clk 0:00:18.4]} 24... Ng4 {[%clk 0:01:06.8]}
25. Rde1 {[%clk 0:00:07.9]} 25... Nf2 {[%clk 0:01:05.6]} 26. Rd1 {[%clk
0:00:05.9]} 26... Nxh1 {[%clk 0:00:58.5]} 27. Rxh1 {[%clk 0:00:07.8]} 27... Bf4
{[%clk 0:00:58.5]} 28. Rg1 {[%clk 0:00:08.4]} 28... Bg3 {[%clk 0:00:58.3]} 29.
Rf1 {[%clk 0:00:09.2]} 29... Re7 {[%clk 0:00:57.9]} 30. b4 {[%clk 0:00:09.2]}
30... Kc7 {[%clk 0:00:57.2]} 31. a3 {[%clk 0:00:09.7]} 31... Red7 {[%clk
0:00:57.9]} 32. Bc4 {[%clk 0:00:10.5]} 32... b5 {[%clk 0:00:55.9]} 33. Be2
{[%clk 0:00:09.5]} 33... Bf4 {[%clk 0:00:52.9]} 34. Ra1 {[%clk 0:00:08.4]} 34...
Rd2+ {[%clk 0:00:51.2]} 35. Nxd2 {[%clk 0:00:09.3]} 35... Rxd2+ {[%clk
0:00:53.1]} 36. Kb3 {[%clk 0:00:11.2]} 36... Rxe2 {[%clk 0:00:54.3]} 37. a4
{[%clk 0:00:12.6]} 37... Kb6 {[%clk 0:00:50.8]} 38. axb5 {[%clk 0:00:13.6]}
38... cxb5 {[%clk 0:00:52.3]} 39. Rd1 {[%clk 0:00:14.7]} 39... Rxe4 {[%clk
0:00:52.2]} 40. Rd7 {[%clk 0:00:14.9]} 40... f6 {[%clk 0:00:52.2]} 41. Rf7
{[%clk 0:00:14.3]} 41... Re6 {[%clk 0:00:52.7]} 42. Rg7 {[%clk 0:00:14.5]} 42...
g5 {[%clk 0:00:53.5]} 43. Rh7 {[%clk 0:00:11.5]} 43... gxh4 {[%clk 0:00:54]} 44.
Rxh5 {[%clk 0:00:12.3]} 44... Bg5 {[%clk 0:00:54.8]} 45. Rh8 {[%clk 0:00:12.3]}
45... Re2 {[%clk 0:00:55.4]} 0-1

[Event "*** Titled Tuesday Blitz"]
[Site "Chess.com"]
[Date "2019.11.05"]
[Round "2"]
[White "ShahMatKanal"]
[Black "StoreySniper"]
[Result "1-0"]
[WhiteElo "2531"]
[BlackElo "2305"]
[TimeControl "180+2"]
[EndTime "13:24:16 PST"]
[Termination "ShahMatKanal won by resignation"]

1. e4 {[%clk 0:03:01.9]} 1... g6 {[%clk 0:03:00]} 2. f4 {[%clk 0:02:55.7]} 2...
Bg7 {[%clk 0:03:00.4]} 3. Nf3 {[%clk 0:02:56.9]} 3... c5 {[%clk 0:02:59.8]} 4.
c3 {[%clk 0:02:46.2]} 4... d5 {[%clk 0:02:53.8]} 5. d3 {[%clk 0:02:40.2]} 5...
dxe4 {[%clk 0:02:49.2]} 6. dxe4 {[%clk 0:02:41.2]} 6... Qxd1+ {[%clk 0:02:50.5]}
7. Kxd1 {[%clk 0:02:43.1]} 7... Nf6 {[%clk 0:02:49.2]} 8. Bd3 {[%clk 0:02:25.2]}
8... c4 {[%clk 0:02:35.3]} 9. Bxc4 {[%clk 0:02:14.3]} 9... Nxe4 {[%clk
0:02:33.3]} 10. Re1 {[%clk 0:02:14.4]} 10... Nd6 {[%clk 0:02:32.6]} 11. Bd3
{[%clk 0:02:05.4]} 11... Bg4 {[%clk 0:02:30.6]} 12. Nd2 {[%clk 0:02:06]} 12...
Nc6 {[%clk 0:02:30.1]} 13. Kc2 {[%clk 0:02:02.3]} 13... Rc8 {[%clk 0:02:29.7]}
14. a3 {[%clk 0:02:00.9]} 14... O-O {[%clk 0:02:28.3]} 15. h3 {[%clk 0:01:59.3]}
15... Bf5 {[%clk 0:02:16.9]} 16. Bxf5 {[%clk 0:02:00.4]} 16... Nxf5 {[%clk
0:02:13.2]} 17. Nb3 {[%clk 0:01:52.1]} 17... e6 {[%clk 0:02:09.7]} 18. g4 {[%clk
0:01:50.6]} 18... Nfd4+ {[%clk 0:02:09.6]} 19. Nbxd4 {[%clk 0:01:51.2]} 19...
Nxd4+ {[%clk 0:02:10.4]} 20. Nxd4 {[%clk 0:01:52.2]} 20... Bxd4 {[%clk
0:02:11.9]} 21. Be3 {[%clk 0:01:53.4]} 21... Bxe3 {[%clk 0:02:12.1]} 22. Rxe3
{[%clk 0:01:55.3]} 22... Rc4 {[%clk 0:02:13.1]} 23. Rf1 {[%clk 0:01:43.9]} 23...
Rc5 {[%clk 0:01:54.6]} 24. Rd3 {[%clk 0:01:32.9]} 24... Rfc8 {[%clk 0:01:54.8]}
25. Rd7 {[%clk 0:01:29.3]} 25... R8c7 {[%clk 0:01:54.9]} 26. Rfd1 {[%clk
0:01:29.6]} 26... h6 {[%clk 0:01:48.3]} 27. R1d4 {[%clk 0:01:19.5]} 27... Kg7
{[%clk 0:01:47.9]} 28. Kd3 {[%clk 0:01:19]} 28... g5 {[%clk 0:01:37.5]} 29. fxg5
{[%clk 0:01:13.2]} 29... hxg5 {[%clk 0:01:38]} 30. c4 {[%clk 0:01:13.5]} 30...
Kg6 {[%clk 0:01:35.8]} 31. b4 {[%clk 0:01:12.9]} 31... R5c6 {[%clk 0:01:33.3]}
32. c5 {[%clk 0:01:08.7]} 32... b6 {[%clk 0:01:32.8]} 33. Rxc7 {[%clk
0:01:00.4]} 33... Rxc7 {[%clk 0:01:33.5]} 34. Kc4 {[%clk 0:00:48]} 34... bxc5
{[%clk 0:01:27.1]} 35. bxc5 {[%clk 0:00:48.6]} 35... f5 {[%clk 0:01:28.3]} 36.
Rd6 {[%clk 0:00:39.6]} 36... Kf6 {[%clk 0:01:21.8]} 37. gxf5 {[%clk 0:00:40.7]}
37... Kxf5 {[%clk 0:01:22.7]} 38. c6 {[%clk 0:00:37.1]} 38... e5 {[%clk
0:01:21.6]} 39. Kd5 {[%clk 0:00:31.7]} 39... e4 {[%clk 0:01:19.9]} 40. Rd7
{[%clk 0:00:32.3]} 40... Rc8 {[%clk 0:01:12.8]} 41. Rf7+ {[%clk 0:00:33]} 41...
Kg6 {[%clk 0:01:14]} 42. Re7 {[%clk 0:00:33.4]} 42... Rd8+ {[%clk 0:00:34.2]}
43. Kxe4 {[%clk 0:00:22.2]} 43... Rd6 {[%clk 0:00:35.1]} 44. c7 {[%clk
0:00:22.6]} 44... Rc6 {[%clk 0:00:36.3]} 45. Kd5 {[%clk 0:00:23.5]} 45... Rc3
{[%clk 0:00:35]} 46. Re6+ {[%clk 0:00:21.9]} 1-0

[Event "*** Titled Tuesday Blitz"]
[Site "Chess.com"]
[Date "2019.11.05"]
[Round "2"]
[White "DishonorOnYourCow"]
[Black "Nazar-Nazar"]
[Result "0-1"]
[WhiteElo "2214"]
[BlackElo "2493"]
[TimeControl "180+2"]
[EndTime "13:24:26 PST"]
[Termination "Nazar-Nazar won by resignation"]

1. d4 {[%clk 0:03:01.9]} 1... d5 {[%clk 0:02:59.8]} 2. c4 {[%clk 0:03:02]} 2...
c6 {[%clk 0:03:00.3]} 3. Nf3 {[%clk 0:03:01.8]} 3... Nf6 {[%clk 0:03:01.4]} 4.
e3 {[%clk 0:03:01.6]} 4... Bf5 {[%clk 0:03:01.5]} 5. Nc3 {[%clk 0:03:00.7]} 5...
e6 {[%clk 0:03:02.6]} 6. Nh4 {[%clk 0:03:00.2]} 6... Bg6 {[%clk 0:03:00.1]} 7.
Qb3 {[%clk 0:02:57.2]} 7... Qc7 {[%clk 0:02:57.5]} 8. Bd2 {[%clk 0:02:41.4]}
8... Nbd7 {[%clk 0:02:58.3]} 9. cxd5 {[%clk 0:02:29.7]} 9... exd5 {[%clk
0:02:55.8]} 10. Rc1 {[%clk 0:02:22.3]} 10... Qb6 {[%clk 0:02:56.5]} 11. Nxg6
{[%clk 0:02:09.4]} 11... Qxb3 {[%clk 0:02:42.2]} 12. axb3 {[%clk 0:02:08.5]}
12... hxg6 {[%clk 0:02:44]} 13. Bd3 {[%clk 0:02:01.9]} 13... Bd6 {[%clk
0:02:43.4]} 14. Na4 {[%clk 0:01:38]} 14... a6 {[%clk 0:02:15.8]} 15. Nc5 {[%clk
0:01:27.2]} 15... Nxc5 {[%clk 0:02:05.2]} 16. dxc5 {[%clk 0:01:27.2]} 16... Be5
{[%clk 0:02:00]} 17. Bc3 {[%clk 0:01:26.4]} 17... Bxc3+ {[%clk 0:01:58.2]} 18.
Rxc3 {[%clk 0:01:26.7]} 18... O-O-O {[%clk 0:01:58.1]} 19. O-O {[%clk
0:01:16.1]} 19... Rh4 {[%clk 0:01:49.3]} 20. Rd1 {[%clk 0:01:07.3]} 20... Rdh8
{[%clk 0:01:31.9]} 21. h3 {[%clk 0:01:07.3]} 21... Kc7 {[%clk 0:01:33]} 22. Bf1
{[%clk 0:01:04.7]} 22... Rb4 {[%clk 0:01:29.8]} 23. Rd4 {[%clk 0:00:59.2]} 23...
a5 {[%clk 0:01:27]} 24. Rcd3 {[%clk 0:00:55.1]} 24... Ne4 {[%clk 0:00:59.9]} 25.
Rxb4 {[%clk 0:00:49]} 25... axb4 {[%clk 0:01:01.8]} 26. Rd4 {[%clk 0:00:50]}
26... Ra8 {[%clk 0:01:02.5]} 27. f3 {[%clk 0:00:27.7]} 27... Nxc5 {[%clk
0:01:01.8]} 28. Rxb4 {[%clk 0:00:28.4]} 28... Ra2 {[%clk 0:00:51]} 29. Rf4
{[%clk 0:00:24.7]} 29... f5 {[%clk 0:00:48.6]} 30. g4 {[%clk 0:00:14.2]} 30...
Ne6 {[%clk 0:00:49.4]} 31. Rb4 {[%clk 0:00:14.4]} 31... Rxb2 {[%clk 0:00:49.3]}
32. gxf5 {[%clk 0:00:15.1]} 32... gxf5 {[%clk 0:00:50.8]} 33. Bd3 {[%clk
0:00:15.6]} 33... g6 {[%clk 0:00:51.7]} 34. h4 {[%clk 0:00:16.4]} 34... c5
{[%clk 0:00:40.6]} 35. Rb5 {[%clk 0:00:16]} 35... Kc6 {[%clk 0:00:28]} 36. h5
{[%clk 0:00:09.5]} 36... gxh5 {[%clk 0:00:28.4]} 37. Ra5 {[%clk 0:00:05.9]}
37... f4 {[%clk 0:00:24.4]} 38. exf4 {[%clk 0:00:04.4]} 38... Nxf4 {[%clk
0:00:25.3]} 39. Bf5 {[%clk 0:00:02.2]} 39... Ne2+ {[%clk 0:00:23]} 40. Kh1
{[%clk 0:00:02.2]} 40... Ng3+ {[%clk 0:00:23.8]} 41. Kg1 {[%clk 0:00:03.2]}
41... Nxf5 {[%clk 0:00:25.3]} 0-1

[Event "*** Titled Tuesday Blitz"]
[Site "Chess.com"]
[Date "2019.11.05"]
[Round "2"]
[White "twitchTriniCupid"]
[Black "Perecke"]
[Result "1/2-1/2"]
[WhiteElo "2431"]
[BlackElo "2141"]
[TimeControl "180+2"]
[EndTime "13:24:26 PST"]
[Termination "Game drawn by agreement"]

1. d4 {[%clk 0:00:06]} 1... d5 {[%clk 0:03:00.1]} 2. Nf3 {[%clk 0:00:07.9]} 2...
Nf6 {[%clk 0:03:01]} 3. c4 {[%clk 0:00:09.8]} 3... e6 {[%clk 0:03:01.9]} 4. Nc3
{[%clk 0:00:11.7]} 4... Be7 {[%clk 0:03:02.9]} 5. e3 {[%clk 0:00:13.6]} 5... O-O
{[%clk 0:03:02]} 6. a3 {[%clk 0:00:15.5]} 6... c6 {[%clk 0:03:02.9]} 7. cxd5
{[%clk 0:00:17.1]} 7... exd5 {[%clk 0:03:03.6]} 8. Bd3 {[%clk 0:00:19]} 8... Bg4
{[%clk 0:03:04]} 9. O-O {[%clk 0:00:20.9]} 9... Nbd7 {[%clk 0:03:05.2]} 10. h3
{[%clk 0:00:22.3]} 10... Bh5 {[%clk 0:03:06.1]} 11. b3 {[%clk 0:00:23.8]} 11...
Re8 {[%clk 0:03:06.2]} 12. Be2 {[%clk 0:00:25.1]} 12... Nf8 {[%clk 0:03:06.6]}
13. Bb2 {[%clk 0:00:26.6]} 13... Ne6 {[%clk 0:03:06.4]} 14. Ne5 {[%clk
0:00:27.9]} 14... Bxe2 {[%clk 0:03:06.8]} 15. Nxe2 {[%clk 0:00:29.8]} 15... Nd7
{[%clk 0:03:08]} 16. Nd3 {[%clk 0:00:30.5]} 16... Bd6 {[%clk 0:03:01]} 17. Rc1
{[%clk 0:00:32.1]} 17... Qc7 {[%clk 0:02:58.8]} 18. b4 {[%clk 0:00:32.9]} 18...
a5 {[%clk 0:02:54.9]} 19. b5 {[%clk 0:00:33.5]} 19... Qb6 {[%clk 0:02:56.1]} 20.
a4 {[%clk 0:00:34.5]} 20... cxb5 {[%clk 0:02:54.4]} 21. axb5 {[%clk 0:00:34.8]}
21... Qxb5 {[%clk 0:02:55.4]} 22. Rb1 {[%clk 0:00:36.6]} 22... Qa6 {[%clk
0:02:19.9]} 23. Nc3 {[%clk 0:00:36.5]} 23... Nf6 {[%clk 0:02:04.5]} 24. Ba1
{[%clk 0:00:37.4]} 24... Nc7 {[%clk 0:02:03.3]} 25. Nf4 {[%clk 0:00:33.7]} 25...
b5 {[%clk 0:02:02.3]} 26. Nce2 {[%clk 0:00:33.5]} 26... Ne4 {[%clk 0:01:56.7]}
27. f3 {[%clk 0:00:30.5]} 27... Bxf4 {[%clk 0:01:56.8]} 28. Nxf4 {[%clk
0:00:29.8]} 28... Nc3 {[%clk 0:01:57]} 29. Bxc3 {[%clk 0:00:30.3]} 29... Rxe3
{[%clk 0:01:56.9]} 30. Bd2 {[%clk 0:00:31.1]} 30... Re7 {[%clk 0:01:55.7]} 31.
Re1 {[%clk 0:00:30.6]} 31... Rae8 {[%clk 0:01:55.8]} 32. Rxe7 {[%clk 0:00:31.5]}
32... Rxe7 {[%clk 0:01:57.7]} 33. Qf1 {[%clk 0:00:32.6]} 33... Qb6 {[%clk
0:01:54.4]} 34. Qf2 {[%clk 0:00:33.7]} 34... b4 {[%clk 0:01:52.3]} 35. Nd3
{[%clk 0:00:35]} 35... Ne6 {[%clk 0:01:41.7]} 36. Nxb4 {[%clk 0:00:35]} 36...
axb4 {[%clk 0:01:35.7]} 37. Rxb4 {[%clk 0:00:35.5]} 37... Qc6 {[%clk 0:01:29.4]}
38. Rb8+ {[%clk 0:00:33.6]} 38... Re8 {[%clk 0:01:27]} 39. Rxe8+ {[%clk
0:00:33.3]} 39... Qxe8 {[%clk 0:01:28.9]} 40. Qe3 {[%clk 0:00:33.3]} 40... Qb8
{[%clk 0:01:25.1]} 41. Qe5 {[%clk 0:00:31.6]} 41... Qxe5 {[%clk 0:01:22]} 42.
dxe5 {[%clk 0:00:32.8]} 42... Kf8 {[%clk 0:01:22.1]} 43. Kf2 {[%clk 0:00:34]}
43... Ke7 {[%clk 0:01:23.4]} 44. Ke3 {[%clk 0:00:35.4]} 44... Kd7 {[%clk
0:01:23.5]} 45. Bb4 {[%clk 0:00:35.3]} 45... Nc7 {[%clk 0:01:23.2]} 46. Kd4
{[%clk 0:00:35.4]} 46... Ke6 {[%clk 0:01:24.3]} 47. f4 {[%clk 0:00:36.8]} 47...
g6 {[%clk 0:01:24.5]} 48. g4 {[%clk 0:00:37.5]} 48... Nb5+ {[%clk 0:01:23.2]}
49. Kc5 {[%clk 0:00:38.2]} 49... Nc7 {[%clk 0:01:21.9]} 50. Kc6 {[%clk
0:00:38.3]} 50... Na6 {[%clk 0:01:15.3]} 51. Bc3 {[%clk 0:00:32.6]} 51... Nb8+
{[%clk 0:01:13]} 52. Kc7 {[%clk 0:00:33.2]} 52... Nd7 {[%clk 0:01:11.9]} 53. Kc6
{[%clk 0:00:24.1]} 1/2-1/2